fUSD/lending_fUSD_20251006
["ID","MTS","AMOUNT","RATE_DAILY","PERIOD"]
[389643838,1759764661951,-1732.86,0.00016438,2]
[389643839,1759764661961,-500.0,0.00016438,2]
[389643840,1759764661972,-3280.24,0.00016438,2]
[389643841,1759764661982,-1732.86,0.00016438,2]
[389643842,1759764661992,-3280.24,0.00016438,2]
[389643843,1759764662002,-1732.86,0.00016438,2]
[389643844,1759764662013,-3280.24,0.00016438,2]
[389643845,1759764662024,-2415.96,0.00016438,2]
[389643846,1759764662035,-1732.86,0.00016438,2]
[389643847,1759764662047,-3280.24,0.00016438,2]
[389643848,1759764662057,-2415.96,0.00016438,2]
[389643849,1759764662068,-1732.86,0.00016438,2]
[389643850,1759764662080,-3280.24,0.00016438,2]
[389643851,1759764662091,-2415.96,0.00016438,2]
[389643852,1759764662101,-1732.86,0.00016438,2]
[389643853,1759764662112,-3280.24,0.00016438,2]
[389643854,1759764662123,-2415.96,0.00016438,2]
[389643855,1759764662133,-3280.24,0.00016438,2]
[389643856,1759764662144,-1732.86,0.00016438,2]
[389643857,1759764662154,-500.0,0.00016438,2]
[389643858,1759764662166,-2415.96,0.00016438,2]
[389643859,1759764662176,-3280.24,0.00016438,2]
[389643860,1759764662187,-500.0,0.00016438,2]
[389643861,1759764662198,-2415.96,0.00016438,2]
[389643862,1759764662208,-3280.24,0.00016438,2]
[389643863,1759764662222,-1732.86,0.00016438,2]
[389643864,1759764662232,-2415.96,0.00016438,2]
[389643865,1759764662244,-500.0,0.00016438,2]
[389643866,1759764662259,-3280.24,0.00016438,2]
[389643867,1759764662269,-1732.86,0.00016438,2]
[389643868,1759764662279,-2415.96,0.00016438,2]
[389643869,1759764662292,-500.0,0.00016438,2]
[389643870,1759764662302,-1732.86,0.00016438,2]
[389643871,1759764662312,-2415.96,0.00016438,2]
[389643872,1759764662324,-172.92165274,0.00016438,2]
[389643873,1759764662335,-500.0,0.00016438,2]
[389643874,1759764662346,-3280.24,0.00016438,2]
[389643875,1759764662357,-1732.86,0.00016438,2]
[389643876,1759764662367,-2415.96,0.00016438,2]
[389643877,1759764662377,-3280.24,0.00016438,2]
[389643878,1759764662388,-500.0,0.00016438,2]
[389643879,1759764662398,-1732.86,0.00016438,2]
[389643880,1759764662409,-2415.96,0.00016438,2]
[389643881,1759764662419,-3280.24,0.00016438,2]
[389643882,1759764662429,-500.0,0.00016438,2]
[389643883,1759764662439,-1732.86,0.00016438,2]
[389643884,1759764662450,-2415.96,0.00016438,2]
[389643885,1759764662460,-3280.24,0.00016438,2]
[389643886,1759764662475,-500.0,0.00016438,2]
[389643887,1759764662485,-1732.86,0.00016438,2]
[389643888,1759764662496,-2415.96,0.00016438,2]
[389643889,1759764662507,-3280.24,0.00016438,2]
[389643890,1759764662518,-500.0,0.00016438,2]
[389643891,1759764662529,-1732.86,0.00016438,2]
[389643892,1759764662540,-2415.96,0.00016438,2]
[389643893,1759764662564,-3280.37417894,0.00016438,2]
[389643894,1759764662576,-500.0,0.00016438,2]
[389643895,1759764662586,-2415.96,0.00016438,2]
[389643896,1759764662597,-1732.86,0.00016438,2]
[389643897,1759764662608,-500.0,0.00016438,2]
[389643898,1759764662619,-1732.86,0.00016438,2]
[389643899,1759764662630,-3373.99,0.00016438,2]
[389643900,1759764662641,-150.0,0.00016438,2]
[389643901,1759764662652,-2415.96,0.00016438,2]
[389643902,1759764662663,-500.0,0.00016438,2]
[389643903,1759764662674,-1732.86,0.00016438,2]
[389643904,1759764662685,-2415.96,0.00016438,2]
[389643905,1759764662696,-3373.99,0.00016438,2]
[389643906,1759764662706,-1732.86,0.00016438,2]
[389643907,1759764662721,-500.0,0.00016438,2]
[389643908,1759764662732,-2415.96,0.00016438,2]
[389643909,1759764662743,-3373.99,0.00016438,2]
[389643910,1759764662754,-1732.94082642,0.00016438,2]
[389643911,1759764662765,-500.0,0.00016438,2]
[389643912,1759764662776,-3373.99,0.00016438,2]
[389643913,1759764662787,-2415.96,0.00016438,2]
[389643914,1759764662798,-2227.42809468,0.00016438,2]
[389643915,1759764662858,-1146.56190532,0.00016438,2]
[389643916,1759764662868,-1964.63804051,0.00016438,2]
[389643917,1759764663408,-151.519945,0.00014999,2]
[389643918,1759764663418,-243.952055,0.00014999,2]
[389643919,1759764663434,-45.372757,0.00014999,2]
[389643920,1759764663443,-151.0,0.00014999,2]
[389643921,1759764663452,-108.6272455,0.00015,2]
[389643922,1759764663472,-180.6975665,0.00015,2]
[389643923,1759764663481,-289.324812,0.00015,2]
[389643924,1759764663491,-151.0,0.00015,2]
[389643925,1759764663501,-289.324812,0.00015,2]
[389643926,1759764663511,-151.0,0.00015,2]
[389643927,1759764663521,-151.0,0.00015,2]
[389643928,1759764663530,-154.461871,0.00015521,2]
[389643929,1759764663540,-289.324812,0.00015521,2]
[389643930,1759764663549,-289.324812,0.00015521,2]
[389643931,1759764663559,-144.95029108,0.00016093,2]
[389643932,1759764663571,-464.41266965,0.00016093,2]
[389643933,1759764663583,-636.0425114,0.00016093,2]
[389643934,1759764663595,-819.86034757,0.00016093,2]
[389643935,1759764663606,-3499.74676195,0.00016093,2]
[389643936,1759764663616,-1557.22601429,0.00016287,2]
[389643937,1759764663628,-2559.77398571,0.00016287,2]
[389643938,1759764663638,-429.16137313,0.00016438,2]
[389643939,1759764663650,-22.16058636,0.00016438,2]
[389643940,1759764663660,-249.16098624,0.00016438,2]
[389643941,1759764663673,-2166.79901376,0.00016438,2]
[389643942,1759764663682,-3373.99,0.00016438,2]
[389643943,1759764663692,-680.3,0.00016438,2]
[389643944,1759764663702,-2415.96,0.00016438,2]
[389643945,1759764663711,-3373.99,0.00016438,2]
[389643946,1759764663723,-756.0,0.00016438,2]
[389643947,1759764663732,-680.3,0.00016438,2]
[389643948,1759764663743,-3373.99,0.00016438,2]
[389643949,1759764663753,-2415.96,0.00016438,2]
[389643950,1759764663763,-680.3,0.00016438,2]
[389643951,1759764663773,-2416.17,0.00016438,2]
[389643952,1759764663783,-3373.99,0.00016438,2]
[389643954,1759764663793,-680.3,0.00016438,2]
[389643956,1759764663804,-3373.99,0.00016438,2]
[389643958,1759764663814,-713.64,0.00016438,2]
[389643960,1759764663824,-3373.99,0.00016438,2]
[389643962,1759764663833,-680.3,0.00016438,2]
[389643964,1759764663844,-713.64,0.00016438,2]
[389643966,1759764663854,-3373.99,0.00016438,2]
[389643968,1759764663864,-680.3,0.00016438,2]
[389643970,1759764663874,-713.64,0.00016438,2]
[389643972,1759764663884,-3373.99,0.00016438,2]
[389643974,1759764663894,-680.3,0.00016438,2]
[389643976,1759764663904,-3373.99,0.00016438,2]
[389643979,1759764663914,-713.64,0.00016438,2]
[389643980,1759764663933,-680.3,0.00016438,2]
[389643982,1759764663943,-3373.99,0.00016438,2]
[389643983,1759764663954,-713.64,0.00016438,2]
[389643984,1759764663965,-680.3,0.00016438,2]
[389643985,1759764663974,-1959.66098375,0.00016438,2]
[389643986,1759764663988,-1414.32901625,0.00016438,2]
[389643987,1759764663999,-713.64,0.00016438,2]
[389643988,1759764664008,-680.3,0.00016438,2]
[389643989,1759764664019,-713.64,0.00016438,2]
[389643990,1759764664028,-680.3,0.00016438,2]
[389643991,1759764664039,-3373.99,0.00016438,2]
[389643992,1759764664050,-713.64,0.00016438,2]
[389643993,1759764664061,-680.3,0.00016438,2]
[389643994,1759764664071,-713.64,0.00016438,2]
[389643996,1759764664083,-680.3,0.00016438,2]
[389643998,1759764664093,-713.64,0.00016438,2]
[389644000,1759764664103,-733.64,0.00016438,2]
[389644002,1759764664113,-680.3,0.00016438,2]
[389644004,1759764664123,-713.64,0.00016438,2]
[389644007,1759764664133,-3373.99,0.00016438,2]
[389644008,1759764664143,-733.64,0.00016438,2]
[389644010,1759764664153,-680.3,0.00016438,2]
[389644012,1759764664164,-713.64,0.00016438,2]
[389644014,1759764664174,-3373.99,0.00016438,2]
[389644016,1759764664184,-733.64,0.00016438,2]
[389644017,1759764664194,-680.3,0.00016438,2]
[389644018,1759764664204,-713.64,0.00016438,2]
[389644019,1759764664215,-3373.99,0.00016438,2]
[389644020,1759764664225,-733.64,0.00016438,2]
[389644021,1759764664234,-680.3,0.00016438,2]
[389644022,1759764664244,-713.64,0.00016438,2]
[389644023,1759764664260,-3373.99,0.00016438,2]
[389644024,1759764664270,-733.64,0.00016438,2]
[389644025,1759764664279,-680.3,0.00016438,2]
[389644026,1759764664290,-502.06098375,0.00016438,2]
[389644027,1759764664312,-151.0,0.00015521,2]
[389644028,1759764664322,-2871.92901625,0.00016438,2]
[389644029,1759764664337,-733.64,0.00016438,2]
[389644030,1759764664347,-713.64,0.00016438,2]
[389644031,1759764664356,-680.3,0.00016438,2]
[389644032,1759764664366,-3373.99,0.00016438,2]
[389644033,1759764664376,-733.64,0.00016438,2]
[389644034,1759764664385,-713.64,0.00016438,2]
[389644035,1759764664395,-680.3,0.00016438,2]
[389644036,1759764664404,-3374.05977588,0.00016438,2]
[389644037,1759764664416,-733.64,0.00016438,2]
[389644038,1759764664425,-713.64,0.00016438,2]
[389644039,1759764664435,-680.3,0.00016438,2]
[389644040,1759764664444,-733.64,0.00016438,2]
[389644041,1759764664454,-713.64,0.00016438,2]
[389644042,1759764664466,-680.3,0.00016438,2]
[389644043,1759764664476,-867.21,0.00016438,2]
[389644044,1759764664486,-733.64,0.00016438,2]
[389644045,1759764664496,-713.64,0.00016438,2]
[389644046,1759764664505,-680.3,0.00016438,2]
[389644047,1759764664516,-733.64,0.00016438,2]
[389644048,1759764664526,-867.21,0.00016438,2]
[389644049,1759764664536,-713.64,0.00016438,2]
[389644050,1759764664546,-680.51392341,0.00016438,2]
[389644051,1759764664556,-867.21,0.00016438,2]
[389644052,1759764664566,-733.64,0.00016438,2]
[389644053,1759764664576,-713.64,0.00016438,2]
[389644054,1759764664585,-867.21,0.00016438,2]
[389644055,1759764664595,-733.64,0.00016438,2]
[389644056,1759764664605,-713.64,0.00016438,2]
[389644057,1759764664614,-149.08682199,0.00016438,2]
[389644058,1759764664940,-151.0,0.00014999,2]
[389644059,1759764664950,-144.11892219,0.00014999,2]
[389644060,1759764664962,-145.20588981,0.00014999,2]
[389644061,1759764664972,-151.0,0.00014999,2]
[389644062,1759764664982,-151.0,0.00015,2]
[389644063,1759764664992,-289.324812,0.00015,2]
[389644064,1759764665002,-151.0,0.00015,2]
[389644065,1759764665012,-13.60929819,0.00015,2]
[389644066,1759764665024,-275.71551381,0.00015,2]
[389644067,1759764665034,-79.12572767,0.00015,2]
[389644068,1759764665045,-71.87427233,0.00015,2]
[389644069,1759764665055,-289.324812,0.00015,2]
[389644070,1759764665066,-203.201248,0.00015,2]
[389644071,1759764665076,-151.0,0.00015521,2]
[389644072,1759764665088,-289.32482,0.00015521,2]
[389644073,1759764665097,-458.91317801,0.00016438,2]
[389644074,1759764665107,-48.61166966,0.00016438,2]
[389644075,1759764665318,-299.78771353,0.00016438,2]
[389644076,1759764665330,-151.60061681,0.00016438,2]
[389644077,1759764665341,-867.21,0.00016438,2]
[389644078,1759764665351,-733.64,0.00016438,2]
[389644079,1759764665361,-713.64,0.00016438,2]
[389644080,1759764665372,-500.0,0.00016438,2]
[389644081,1759764665382,-867.21,0.00016438,2]
[389644082,1759764665392,-733.64,0.00016438,2]
[389644083,1759764665402,-346.3101045,0.00016438,2]
[389644084,1759764665414,-367.3698955,0.00016438,2]
[389644085,1759764665424,-390.51197467,0.00016438,2]
[389644086,1759764665436,-109.48802533,0.00016438,2]
[389644087,1759764665447,-304.30559489,0.00016438,2]
[389644088,1759764665468,-562.90440511,0.00016438,2]
[389644089,1759764665477,-733.64,0.00016438,2]
[389644090,1759764665487,-500.0,0.00016438,2]
[389644091,1759764665496,-867.21,0.00016438,2]
[389644092,1759764665506,-733.64,0.00016438,2]
[389644093,1759764665515,-867.21,0.00016438,2]
[389644094,1759764665525,-500.0,0.00016438,2]
[389644095,1759764665534,-735.91,0.00016438,2]
[389644096,1759764665544,-733.64,0.00016438,2]
[389644097,1759764665555,-500.0,0.00016438,2]
[389644098,1759764665567,-733.64,0.00016438,2]
[389644099,1759764665577,-867.21,0.00016438,2]
[389644100,1759764665587,-735.91,0.00016438,2]
[389644101,1759764665597,-733.64,0.00016438,2]
[389644102,1759764665608,-500.0,0.00016438,2]
[389644103,1759764665620,-867.21,0.00016438,2]
[389644104,1759764665679,-735.91,0.00016438,2]
[389644105,1759764665690,-733.64,0.00016438,2]
[389644106,1759764665700,-500.0,0.00016438,2]
[389644107,1759764665710,-735.91,0.00016438,2]
[389644108,1759764665722,-500.0,0.00016438,2]
[389644109,1759764665731,-733.64,0.00016438,2]
[389644110,1759764665740,-867.21,0.00016438,2]
[389644111,1759764665750,-735.91,0.00016438,2]
[389644112,1759764665760,-733.64,0.00016438,2]
[389644113,1759764665770,-500.0,0.00016438,2]
[389644114,1759764665779,-867.21,0.00016438,2]
[389644115,1759764665789,-735.91,0.00016438,2]
[389644116,1759764665799,-733.69478732,0.00016438,2]
[389644117,1759764665808,-867.21,0.00016438,2]
[389644118,1759764665817,-500.0,0.00016438,2]
[389644119,1759764665826,-735.91,0.00016438,2]
[389644120,1759764665836,-867.21,0.00016438,2]
[389644121,1759764665845,-735.91,0.00016438,2]
[389644122,1759764665854,-330.54,0.00016438,2]
[389644123,1759764665864,-735.91,0.00016438,2]
[389644124,1759764665874,-867.21,0.00016438,2]
[389644125,1759764665884,-867.21,0.00016438,2]
[389644126,1759764665893,-735.91,0.00016438,2]
[389644127,1759764665903,-500.0,0.00016438,2]
[389644128,1759764665911,-867.21,0.00016438,2]
[389644129,1759764665921,-867.21,0.00016438,2]
[389644130,1759764665932,-500.0,0.00016438,2]
[389644131,1759764665941,-735.91,0.00016438,2]
[389644132,1759764665950,-867.21,0.00016438,2]
[389644133,1759764665960,-500.0,0.00016438,2]
[389644134,1759764665970,-735.91,0.00016438,2]
[389644135,1759764665980,-867.21,0.00016438,2]
[389644136,1759764665989,-500.0,0.00016438,2]
[389644137,1759764665998,-735.91,0.00016438,2]
[389644138,1759764666008,-867.21,0.00016438,2]
[389644139,1759764666017,-500.0,0.00016438,2]
[389644140,1759764666026,-500.0,0.00016438,2]
[389644141,1759764666036,-735.91,0.00016438,2]
[389644142,1759764666045,-867.21,0.00016438,2]
[389644143,1759764666055,-500.0,0.00016438,2]
[389644144,1759764666065,-500.0,0.00016438,2]
[389644145,1759764666076,-575.64080756,0.00016438,2]
[389644146,1759764666091,-160.26919244,0.00016438,2]
[389644147,1759764666100,-132.06031274,0.00016438,2]
[389644148,1759764666114,-735.15994432,0.00016438,2]
[389644149,1759764666123,-500.0,0.00016438,2]
[389644150,1759764666133,-72.03907568,0.00016438,2]
[389644151,1759764666145,-427.96092432,0.00016438,2]
[389644152,1759764666155,-333.88548678,0.00016438,2]
[389644154,1759764666445,-933.14790751,0.00016338,2]
[389644155,1759764666460,-611.95114755,0.00016338,2]
[389644156,1759764666473,-322.86243433,0.00016338,2]
[389644157,1759764666485,-871.70403222,0.00016338,2]
[389644158,1759764666497,-351.82251986,0.00016338,2]
[389644159,1759764666508,-2473.52454018,0.00016338,2]
[389644160,1759764666519,-402.02451322,0.00016438,2]
[389644161,1759764666529,-500.0,0.00016438,2]
[389644162,1759764666538,-735.91,0.00016438,2]
[389644163,1759764666547,-500.0,0.00016438,2]
[389644164,1759764666557,-735.91,0.00016438,2]
[389644165,1759764666566,-500.0,0.00016438,2]
[389644166,1759764666576,-735.91,0.00016438,2]
[389644167,1759764666586,-500.0,0.00016438,2]
[389644168,1759764666596,-500.0,0.00016438,2]
[389644169,1759764666606,-735.91,0.00016438,2]
[389644170,1759764666616,-500.0,0.00016438,2]
[389644171,1759764666626,-102.2709816,0.00016438,2]
[389644172,1759764666640,-633.6390184,0.00016438,2]
[389644173,1759764666650,-500.0,0.00016438,2]
[389644174,1759764666661,-500.0,0.00016438,2]
[389644175,1759764666671,-500.0,0.00016438,2]
[389644176,1759764666681,-735.91,0.00016438,2]
[389644177,1759764666691,-124.6006842,0.00016438,2]
[389644178,1759764666704,-367.0693158,0.00016438,2]
[389644179,1759764666719,-228.23068425,0.00016438,2]
[389644180,1759764666733,-271.76931575,0.00016438,2]
[389644181,1759764666743,-735.91,0.00016438,2]
[389644182,1759764666754,-9.76228969,0.00016438,2]
[389644183,1759764666767,-490.23771031,0.00016438,2]
[389644184,1759764666778,-736.03766779,0.00016438,2]
[389644185,1759764666796,-500.0,0.00016438,2]
[389644186,1759764666808,-500.0,0.00016438,2]
[389644187,1759764666820,-265.63,0.00016438,2]
[389644188,1759764666831,-2520.64,0.00016438,2]
[389644189,1759764666843,-2520.64,0.00016438,2]
[389644190,1759764666854,-1059.65985366,0.00016438,2]
[389644191,1759764666873,-1460.98014634,0.00016438,2]
[389644192,1759764666885,-863.31542034,0.00016438,2]
[389644193,1759764666899,-1657.32457966,0.00016438,2]
[389644194,1759764666911,-2520.64,0.00016438,2]
[389644195,1759764666922,-2520.64,0.00016438,2]
[389644196,1759764666938,-500.0,0.00016438,2]
[389644197,1759764666950,-2520.64,0.00016438,2]
[389644198,1759764666961,-500.0,0.00016438,2]
[389644199,1759764666981,-500.0,0.00016438,2]
[389644200,1759764666992,-2520.64,0.00016438,2]
[389644201,1759764667003,-2520.64,0.00016438,2]
[389644202,1759764667014,-500.0,0.00016438,2]
[389644203,1759764667025,-500.0,0.00016438,2]
[389644204,1759764667036,-2520.64,0.00016438,2]
[389644205,1759764667046,-500.0,0.00016438,2]
[389644206,1759764667058,-2520.64,0.00016438,2]
[389644207,1759764667069,-500.0,0.00016438,2]
[389644208,1759764667081,-2520.64,0.00016438,2]
[389644209,1759764667091,-2520.64,0.00016438,2]
[389644210,1759764667101,-500.0,0.00016438,2]
[389644211,1759764667111,-2520.64,0.00016438,2]
[389644212,1759764667120,-500.0,0.00016438,2]
[389644213,1759764667129,-2520.64,0.00016438,2]
[389644214,1759764667140,-500.0,0.00016438,2]
[389644215,1759764667150,-1344.8338079,0.00016438,2]
[389644216,1759764667163,-1175.8061921,0.00016438,2]
[389644217,1759764667173,-470.72110565,0.00016438,2]
[389644218,1759764667186,-29.27889435,0.00016438,2]
[389644219,1759764667196,-727.40571005,0.00016438,2]
[389644220,1759764667213,-1793.23428995,0.00016438,2]
[389644221,1759764667230,-2520.64,0.00016438,2]
[389644222,1759764667241,-2520.64,0.00016438,2]
[389644223,1759764667255,-2520.64,0.00016438,2]
[389644224,1759764667264,-2347.17818259,0.00016438,2]
[389644225,1759764667276,-173.46181741,0.00016438,2]
[389644226,1759764667285,-609.82068259,0.00016438,2]
[389644227,1759764667297,-1161.0,0.00016438,2]
[389644228,1759764667312,-749.81931741,0.00016438,2]
[389644229,1759764667321,-2520.64,0.00016438,2]
[389644230,1759764667331,-1252.6,0.00016438,2]
[389644231,1759764667340,-2520.68474746,0.00016438,2]
[389644232,1759764667350,-1252.6,0.00016438,2]
[389644233,1759764667359,-1252.6,0.00016438,2]
[389644234,1759764667369,-1252.6,0.00016438,2]
[389644235,1759764667379,-1252.6,0.00016438,2]
[389644236,1759764667388,-1252.6,0.00016438,2]
[389644237,1759764667398,-605.34626058,0.00016438,2]
[389644238,1759764667410,-647.25373942,0.00016438,2]
[389644239,1759764667419,-1252.6,0.00016438,2]
[389644240,1759764667430,-646.22,0.00016438,2]
[389644241,1759764667439,-234.94958895,0.00016438,2]
[389644242,1759764667451,-962.47647026,0.00016438,2]
[389644243,1759764667471,-55.17394079,0.00016438,2]
[389644244,1759764667481,-646.22,0.00016438,2]
[389644245,1759764667490,-1252.6,0.00016438,2]
[389644246,1759764667504,-646.22,0.00016438,2]
[389644247,1759764667515,-1252.6,0.00016438,2]
[389644248,1759764667525,-646.22,0.00016438,2]
[389644249,1759764667535,-1252.6,0.00016438,2]
[389644250,1759764667545,-646.22,0.00016438,2]
[389644251,1759764667555,-655.1,0.00016438,2]
[389644252,1759764667564,-1252.6,0.00016438,2]
[389644253,1759764667574,-646.22,0.00016438,2]
[389644254,1759764667584,-655.1,0.00016438,2]
[389644255,1759764667594,-1252.6,0.00016438,2]
[389644256,1759764667604,-646.22,0.00016438,2]
[389644257,1759764667613,-655.1,0.00016438,2]
[389644258,1759764667624,-1252.6,0.00016438,2]
[389644259,1759764667633,-646.22,0.00016438,2]
[389644260,1759764667643,-708.50990679,0.00016438,2]
[389644261,1759764667875,-253.52,0.00016438,2]
[389644262,1759764667887,-2516.50009321,0.00016438,2]
[389644263,1759764667897,-655.1,0.00016438,2]
[389644264,1759764667907,-87.39990679,0.00016438,2]
[389644266,1759764735019,689.57859868,5.5e-05,2]
[389644267,1759764738590,500.0,5.5e-05,2]
[389644268,1759764738901,500.0,5.5e-05,2]
[389644269,1759764739289,500.0,5.5e-05,2]
[389644270,1759764739560,500.0,5.5e-05,2]
[389644271,1759764739894,500.0,5.5e-05,2]
[389644272,1759764740301,500.0,5.5e-05,2]
[389644273,1759764740347,500.0,5.5e-05,2]
[389644274,1759764740511,500.0,5.5e-05,2]
[389644275,1759764740593,500.0,5.5e-05,2]
[389644276,1759764740858,500.0,5.5e-05,2]
[389644277,1759764740932,500.0,5.5e-05,2]
[389644278,1759764741191,188.50623459,4e-05,2]
[389644279,1759764741213,311.49376541,4e-05,2]
[389644280,1759764741435,500.0,5.5e-05,2]
[389644281,1759764741557,500.0,4e-05,2]
[389644282,1759764741903,500.0,5.5e-05,2]
[389644283,1759764741991,600.0,4e-05,2]
[389644284,1759764742267,500.0,5.5e-05,2]
[389644285,1759764742621,500.0,5.5e-05,2]
[389644286,1759764743007,500.0,4e-05,2]
[389644287,1759764743367,500.0,4e-05,2]
[389644288,1759764743730,500.0,4e-05,2]
[389644289,1759764744086,500.0,4e-05,2]
[389644290,1759764744298,318.37895789,5.5e-05,2]
[389644291,1759764744321,150.06250121,5.5e-05,2]
[389644292,1759764744342,32.79031213,5.5e-05,2]
[389644293,1759764744446,500.0,4e-05,2]
[389644294,1759764744878,500.0,4e-05,2]
[389644295,1759764745176,500.0,4e-05,2]
[389644296,1759764745501,500.0,4e-05,2]
[389644297,1759764745832,360.36092148,5.5e-05,2]
[389644298,1759764745857,139.63907852,5.5e-05,2]
[389644299,1759764745895,915.72769346,4e-05,2]
[389644300,1759764746205,500.0,5.5e-05,2]
[389644301,1759764746835,569.96448061,5.5e-05,2]
[389644302,1759764746875,500.0,4e-05,2]
[389644303,1759764746914,989.23231428,5.5e-05,2]
[389644304,1759764746954,500.0,5.5e-05,2]
[389644305,1759764747323,500.0,5.5e-05,2]
[389644306,1759764747676,500.0,4e-05,2]
[389644307,1759764747937,500.0,5.5e-05,2]
[389644308,1759764748141,800.0,4e-05,2]
[389644309,1759764748320,500.0,5.5e-05,2]
[389644310,1759764748703,500.0,4e-05,2]
[389644311,1759764749010,500.0,5.5e-05,2]
[389644312,1759764749103,502.11317419,4e-05,2]
[389644313,1759764749364,500.0,5.5e-05,2]
[389644314,1759764749602,500.0,5.5e-05,2]
[389644315,1759764750016,500.0,5.5e-05,2]
[389644316,1759764750518,500.0,5.5e-05,2]
[389644317,1759764750784,317.87391616,4e-05,2]
[389644318,1759764750808,182.12608384,4e-05,2]
[389644319,1759764751172,500.0,4e-05,2]
[389644320,1759764751531,500.0,4e-05,2]
[389644321,1759764786572,154.0,0.00011897,2]
[389644322,1759764788829,165.0,0.00011897,2]
[389644324,1759764852351,154.0,0.00011897,3]
[389644325,1759764911013,161.0,0.00011897,3]
[389644327,1759764971937,161.0,0.00011897,3]
[389644328,1759765028414,161.0,0.00011929,2]
[389644336,1759765088278,162.0,0.00011929,2]
[389644340,1759765152474,162.0,0.00011929,2]
[389644341,1759765209733,162.0,0.0001193,2]
[389644342,1759765271708,1128.0,0.0001,6]
[389644353,1759765614995,866.03253112,0.00010781,7]
[389644355,1759765687115,158.0,0.00012,2]
[389644357,1759765747509,158.0,0.00012,2]
[389644371,1759765832732,-399.51557947,0.000134,2]
[389644372,1759765832744,-2742.34536884,0.000134,2]
[389644373,1759765832753,-205.391,0.00013468,2]
[389644374,1759765832763,-177.365388,0.00014133,2]
[389644375,1759765832773,-1200.0,0.00014205,2]
[389644376,1759765832783,-15022.6251711,0.00014206,2]
[389644377,1759765832792,-170.85607359,0.000145,2]
[389644378,1759765832801,-150.0,0.000146,2]
[389644379,1759765832811,-291.05,0.00014708,2]
[389644380,1759765832820,-195.0,0.0001474,2]
[389644381,1759765832830,-1185.12003012,0.00014815,2]
[389644382,1759765832839,-195.0,0.00014815,2]
[389644383,1759765832848,-188.0,0.00014849,2]
[389644384,1759765832857,-250.0,0.00014863,2]
[389644385,1759765832866,-3285.62,0.00014868,2]
[389644386,1759765832876,-1924.27,0.00014877,2]
[389644387,1759765832885,-807.65,0.00014962,2]
[389644388,1759765832894,-200.0,0.00014968,2]
[389644389,1759765832904,-303.55,0.00015002,2]
[389644390,1759765832913,-302.51,0.0001501,2]
[389644391,1759765832922,-169.0,0.00015012,2]
[389644392,1759765832932,-304.74,0.00015052,2]
[389644393,1759765832941,-2576.73965443,0.00015107,2]
[389644394,1759765832951,-291.0,0.00015165,2]
[389644395,1759765832960,-291.0,0.00015258,2]
[389644396,1759765832969,-291.0,0.00015281,2]
[389644397,1759765832979,-200.0,0.00015313,2]
[389644398,1759765832988,-151.0,0.00015313,2]
[389644399,1759765832998,-200.0,0.00015313,2]
[389644400,1759765833007,-500.0,0.00015313,2]
[389644401,1759765833017,-500.0,0.00015313,2]
[389644402,1759765833026,-500.0,0.00015313,2]